bitfinex/quotes_ETHUSD_20240719
["timestamp","ask_amount","ask_price","bid_price","bid_amount"]
[1721378703066,2.94,3401.4,3400.9,2.3676]
[1721378703263,2.94,3401.4,3400.9,2.84444779]
[1721378704162,2.93981,3401.6,3400.9,2.84444779]
[1721378704362,7.45,3402.2,3401.2,2.541]
[1721378704567,2.93925,3402.3,3401.6,2.541]
[1721378705502,2.93925,3402.3,3401.7,2.4307]
[1721378705905,2.93896,3402.6,3402.0,2.541]
[1721378706204,2.93922,3402.3,3402.0,2.541]
[1721378706784,2.93922,3402.3,3401.7,2.4307]
[1721378707718,2.93922,3402.3,3401.0,2.541]
[1721378707719,2.93976,3401.7,3401.0,2.541]
[1721378708067,7.45,3402.5,3401.2,2.94011]
[1721378708068,2.93945,3402.0,3401.2,2.94011]
[1721378708498,2.93953,3401.9,3401.2,2.94011]
[1721378709206,2.93962,3401.8,3401.1,2.3085]
[1721378709580,2.93945,3402.0,3401.1,3.43516178]
[1721378709921,2.93945,3402.0,3401.2,5.94013]
[1721378710065,2.93954,3401.9,3401.2,3.0]
[1721378710270,9.8617,3402.5,3401.4,2.541]
[1721378710271,2.93943,3402.1,3401.4,2.541]
[1721378710470,2.93946,3402.0,3401.4,2.541]
[1721378711268,2.9393,3402.2,3401.4,2.541]
[1721378711469,2.9393,3402.2,3401.5,2.3512]
[1721378711716,2.93911,3402.4,3401.6,3.84211762]
[1721378712004,2.93924,3402.3,3401.6,0.90238762]
[1721378712206,2.93904,3402.5,3401.6,0.90238762]
[1721378712207,5.87811,3402.5,3401.6,0.90238762]
[1721378712428,5.87811,3402.5,3401.6,3.84216762]
[1721378712429,2.9391,3402.4,3401.6,3.84216762]
[1721378712803,2.93897,3402.6,3401.7,2.93968]
[1721378712978,2.93897,3402.6,3401.8,0.91330476]
[1721378713591,2.93902,3402.5,3401.8,0.91330476]
[1721378714787,2.93911,3402.4,3401.8,0.91330476]
[1721378715114,2.93911,3402.4,3401.6,3.84216762]
[1721378715612,2.93925,3402.3,3401.6,0.90238762]
[1721378715810,2.93931,3402.2,3401.6,3.0]
[1721378716108,2.93931,3402.2,3401.5,5.3512]
[1721378716615,2.93911,3402.4,3401.5,5.3512]
[1721378716799,2.93896,3402.6,3401.7,2.93968]
[1721378716990,2.93907,3402.5,3401.7,2.93968]
[1721378717204,2.93907,3402.5,3401.7,4.316855]
[1721378718531,2.93895,3402.6,3401.8,5.541]
[1721378719240,2.93895,3402.6,3401.9,2.3009]
[1721378719743,2.93867,3402.9,3402.0,2.93938]
[1721378720035,2.93867,3402.9,3402.1,2.93935]
[1721378720962,2.93858,3403.0,3402.2,5.48026]
[1721378721135,2.93858,3403.0,3402.3,6.36502785]
[1721378721632,2.93844,3403.2,3402.6,2.541]
[1721378722142,2.93825,3403.4,3402.7,2.4229]
[1721378722701,2.93807,3403.6,3402.7,5.36167]
[1721378722925,7.45,3403.7,3403.0,2.541]
[1721378723140,2.93789,3403.8,3403.0,2.541]
[1721378724818,2.93775,3404.0,3403.1,2.93847]
[1721378725019,2.93781,3403.9,3403.2,2.3581]
[1721378727430,2.93763,3404.1,3403.2,5.29648]
[1721378727657,2.93773,3404.0,3403.2,5.29648]
[1721378728148,2.93746,3404.3,3403.5,2.93806]
[1721378728919,2.93757,3404.2,3403.4,2.541]
[1721378729125,2.93757,3404.2,3403.4,5.47922]
[1721378730252,2.93743,3404.4,3403.5,2.93814]
[1721378730415,10.45,3404.8,3403.6,2.285]
[1721378730416,2.93726,3404.6,3403.6,2.285]
[1721378730619,2.9373,3404.5,3403.7,2.93797]
[1721378731227,2.9373,3404.5,3403.7,4.008181]
[1721378731820,2.93738,3404.4,3403.7,1.070211]
[1721378733666,2.93738,3404.4,3403.8,2.3093]
[1721378734026,2.93755,3404.2,3403.8,2.3093]
[1721378734758,2.4264,3404.5,3403.4,2.3093]
[1721378734963,12.28,3405.7,3403.0,2.3093]
[1721378734964,2.93813,3403.6,3403.0,2.3093]
[1721378735931,2.93829,3403.4,3403.0,2.3093]
[1721378736167,2.93829,3403.4,3402.7,2.3093]
[1721378736336,2.93815,3403.5,3402.7,3.382128]
[1721378736868,2.93815,3403.5,3402.7,6.320968]
[1721378737040,2.93807,3403.6,3403.0,2.541]
[1721378737835,2.93782,3403.9,3403.1,2.3737]
[1721378738049,2.93782,3403.9,3403.1,5.31211]
[1721378738256,2.93773,3404.0,3403.4,2.541]
[1721378738457,2.93781,3403.9,3403.4,2.541]
[1721378738662,2.93781,3403.9,3403.1,5.31218]
[1721378738836,2.93765,3404.1,3403.1,5.31218]
[1721378738837,2.93817,3403.5,3403.1,2.3737]
[1721378739033,2.93846,3403.2,3403.0,2.541]
[1721378739265,2.93846,3403.2,3402.7,2.4326]
[1721378739666,2.93901,3402.5,3402.0,4.8508]
[1721378739885,2.93915,3402.4,3401.7,2.3098]
[1721378740063,2.93935,3402.2,3401.7,2.3098]
[1721378742043,2.93915,3402.4,3401.7,2.3098]
[1721378742044,2.93937,3402.1,3401.7,2.3098]
[1721378742480,2.93945,3402.0,3401.6,2.541]
[1721378742665,2.9397,3401.7,3401.3,2.3098]
[1721378745882,2.93996,3401.4,3401.3,0.1]
[1721378746047,5.87992,3401.4,3401.3,0.1]
[1721378750043,2.9398,3401.6,3401.3,0.1]
[1721378750249,2.93988,3401.5,3401.3,0.1]
[1721378751049,2.93996,3401.4,3401.3,0.1]
[1721378756986,5.87992,3401.4,3401.3,0.1]
[1721378757579,8.81988,3401.4,3401.3,0.1]
[1721378757773,9.113609,3401.4,3401.3,0.1]
[1721378763186,11.419409,3401.4,3401.3,0.1]
[1721378763373,17.909369,3401.4,3401.3,0.1]
[1721378763571,17.909369,3401.4,3399.8,2.266]
[1721378763572,2.2971,3401.3,3399.8,2.266]
[1721378763779,2.2971,3400.7,3399.8,2.266]
[1721378764019,0.293817,3400.6,3399.8,2.266]
[1721378764216,2.94123,3400.0,3399.6,2.541]
[1721378765079,2.94109,3400.1,3399.6,2.541]
[1721378765283,2.94105,3400.2,3399.6,2.541]
[1721378765885,2.94109,3400.1,3399.6,2.541]
[1721378766482,2.94091,3400.3,3399.6,2.541]
[1721378766898,2.94106,3400.2,3399.6,2.541]
[1721378767422,0.293817,3400.6,3399.6,2.541]
[1721378767622,0.293817,3400.6,3399.6,3.335047]
[1721378767801,2.94106,3400.2,3399.6,3.335047]
[1721378767991,2.9409,3400.4,3399.6,3.335047]
[1721378768508,2.94101,3400.2,3399.6,3.335047]
[1721378769224,2.94109,3400.1,3399.6,3.335047]
[1721378769398,2.4654,3400.0,3399.1,3.0]
[1721378769727,2.9414,3399.8,3399.0,2.541]
[1721378769894,2.9414,3399.8,3399.1,3.0]
[1721378770792,2.94123,3400.0,3399.1,5.94194]
[1721378771059,2.94126,3399.9,3399.2,1.076894]
[1721378772192,2.94126,3399.9,3399.3,2.286]
[1721378772388,2.94126,3399.9,3399.3,5.286]
[1721378773572,2.94126,3399.9,3399.4,2.541]
[1721378776628,2.94083,3400.4,3399.6,2.94146]
[1721378776798,2.94083,3400.4,3399.7,1.087734]
[1721378776997,2.94079,3400.5,3399.7,1.087734]
[1721378776998,2.94095,3400.3,3399.7,1.087734]
[1721378777206,2.94095,3400.3,3399.5,5.3948]
[1721378777816,2.9411,3400.1,3399.5,2.4532]
[1721378778021,2.94126,3399.9,3399.5,2.4532]
[1721378779034,2.94136,3399.8,3399.5,2.4532]
[1721378779212,2.94148,3399.7,3399.2,2.2664]
[1721378780543,2.94126,3399.9,3399.2,2.2664]
[1721378780735,2.94135,3399.8,3399.2,2.2664]
[1721378781133,2.94126,3399.9,3399.2,2.2664]
[1721378781134,2.94144,3399.7,3399.2,2.2664]
[1721378783363,2.94126,3399.9,3399.2,2.2664]
[1721378783364,2.94152,3399.6,3399.2,2.2664]
[1721378786088,2.9414,3399.8,3399.2,2.2664]
[1721378786243,2.9414,3399.8,3399.3,1.02325097]
[1721378786566,2.9414,3399.8,3399.4,1.02321085]
[1721378786724,2.9414,3399.8,3399.2,2.87828089]
[1721378786924,2.94143,3399.7,3399.3,2.55803428]
[1721378787262,2.94143,3399.7,3399.2,2.87828089]
[1721378787436,2.94143,3399.7,3399.3,2.55803165]
[1721378787636,2.94143,3399.7,3399.4,1.02321266]
[1721378787836,2.94143,3399.7,3399.2,2.2664]
[1721378788036,2.94143,3399.7,3399.3,1.02322042]
[1721378788260,2.94143,3399.7,3399.2,2.2664]
[1721378788468,2.94143,3399.7,3399.3,1.02324208]
[1721378788757,2.94121,3400.0,3399.2,2.2664]
[1721378788958,3.529428,3400.0,3399.3,1.02323324]
[1721378789154,3.529428,3400.0,3399.2,2.2664]
[1721378789457,2.9414,3399.8,3399.3,1.02323321]
[1721378789672,2.9414,3399.8,3399.2,2.2664]
[1721378789840,2.9414,3399.8,3399.3,1.02322981]
[1721378790023,2.9414,3399.8,3399.2,2.2664]
[1721378790225,2.94144,3399.7,3399.2,2.2664]
[1721378794774,2.94144,3399.7,3399.3,0.0469697]
[1721378794980,2.94169,3399.4,3399.3,0.0469697]
[1721378795279,5.88338,3399.4,3399.3,0.0469697]
[1721378795479,6.471718,3399.4,3399.3,0.0469697]
[1721378796040,3.530028,3399.4,3399.3,0.0469697]
[1721378796440,2.94163,3399.5,3399.3,0.0469697]
[1721378796878,2.94149,3399.7,3399.3,0.0469697]
[1721378797383,2.94153,3399.6,3399.3,0.0469697]
[1721378797554,2.9414,3399.8,3399.3,0.0469697]
[1721378798453,2.94143,3399.7,3399.3,0.0469697]
[1721378798663,3.5885238,3399.7,3399.3,0.0469697]
[1721378798883,6.5300438,3399.7,3399.3,0.0469697]
[1721378799280,2.94155,3399.6,3399.3,0.0469697]
[1721378799985,2.94162,3399.5,3399.3,0.0469697]
[1721378801985,3.5885238,3399.7,3399.3,0.0469697]
[1721378802283,2.94152,3399.6,3399.3,0.0469697]
[1721378803643,2.9414,3399.8,3399.3,0.0469697]
[1721378803871,2.9414,3399.8,3399.4,2.2524]
[1721378806058,2.9414,3399.8,3399.3,0.0469697]
[1721378806059,2.94145,3399.7,3399.3,0.0469697]
[1721378806290,2.94152,3399.6,3399.3,0.0469697]
[1721378807658,2.94165,3399.5,3399.3,0.0469697]
[1721378808372,2.94169,3399.4,3399.3,0.0469697]
[1721378809801,5.88338,3399.4,3399.3,0.0469697]
[1721378812960,8.82507,3399.4,3399.3,0.0469697]
[1721378816209,11.66847,3399.4,3399.3,0.0469697]
[1721378818804,11.66847,3399.4,3397.6,2.4875]
[1721378818805,2.94292,3398.0,3397.6,2.4875]
[1721378819314,5.40962,3398.7,3397.2,2.4875]
[1721378819315,2.94313,3397.8,3397.2,2.4875]
[1721378820106,2.94317,3397.7,3397.2,2.4875]
[1721378820319,2.94339,3397.5,3397.2,2.4875]
[1721378820823,2.94319,3397.7,3397.2,2.4875]
[1721378822124,2.94282,3398.1,3397.2,3.030635]
[1721378822268,2.94258,3398.4,3397.6,2.4196]
[1721378822686,2.94244,3398.6,3397.7,2.94311]
[1721378822931,2.94238,3398.6,3397.7,2.94311]
[1721378823134,2.94238,3398.6,3397.9,2.4875]
[1721378823507,2.94247,3398.5,3397.9,2.4875]
[1721378823913,2.94256,3398.4,3397.9,2.4875]
[1721378827810,2.94261,3398.4,3397.9,2.4875]
[1721378829233,0.588502,3398.4,3397.5,2.3659]
[1721378829542,2.94272,3398.3,3397.5,2.3659]
[1721378829839,5.3135,3399.0,3397.6,2.3659]
[1721378829840,2.94252,3398.5,3397.6,2.3659]
[1721378830032,2.94256,3398.4,3397.6,2.3659]
[1721378830245,2.94265,3398.3,3397.6,2.3659]
[1721378830398,2.94265,3398.3,3397.7,0.530923]
[1721378831352,2.94273,3398.2,3397.6,2.3659]
[1721378833743,2.94301,3397.9,3397.6,2.3659]
[1721378834116,2.94301,3397.9,3397.3,2.287]
[1721378834311,2.94308,3397.8,3397.3,2.287]
[1721378834524,3.531671,3397.8,3397.3,2.287]
[1721378834925,2.94317,3397.7,3397.3,2.287]
[1721378835844,2.94329,3397.6,3396.9,2.287]
[1721378838140,2.94268,3398.3,3396.9,2.287]
[1721378838141,2.94334,3397.5,3396.9,2.287]
[1721378838349,0.294334,3397.4,3396.9,2.287]
[1721378838534,2.94355,3397.3,3396.9,2.287]
[1721378839120,2.94355,3397.3,3396.6,2.94409]
[1721378839548,2.94355,3397.3,3396.5,5.3975]
[1721378841750,2.94355,3397.3,3396.5,2.4533]
[1721378841947,2.94355,3397.3,3396.5,5.4533]
[1721378842250,2.94355,3397.3,3396.5,7.141592]
[1721378842934,2.94355,3397.3,3396.5,10.085792]
[1721378843523,2.9432,3397.7,3396.8,2.424]
[1721378843919,2.94307,3397.9,3396.8,5.36793]
[1721378844343,2.94309,3397.8,3396.9,2.94379]
[1721378844622,2.94309,3397.8,3396.8,5.36793]
[1721378844623,2.94307,3397.9,3397.0,0.831172]
[1721378845462,2.94307,3397.9,3397.1,2.94368]
[1721378845824,3.0,3398.3,3397.0,0.831172]
[1721378845825,2.9427,3398.3,3397.3,7.90848]
[1721378846030,2.9427,3398.3,3397.6,2.94324]
[1721378846249,2.9427,3398.3,3397.4,5.36736]
[1721378846453,2.9427,3398.3,3397.5,4.028504]
[1721378847255,2.9427,3398.3,3397.6,2.424]
[1721378847966,2.94279,3398.2,3397.6,2.424]
[1721378849243,2.94262,3398.4,3397.6,5.36725]
[1721378849642,2.94265,3398.3,3397.6,5.36725]
[1721378849873,3.531165,3398.3,3397.6,5.36725]
[1721378850436,3.531165,3398.3,3397.6,2.424]
[1721378850637,2.94284,3398.1,3397.3,5.36748]
[1721378850845,3.531165,3398.3,3397.5,2.94331]
[1721378851247,2.94261,3398.4,3397.6,2.94319]
[1721378852646,2.94265,3398.3,3397.6,2.94319]
[1721378855435,2.94252,3398.5,3397.6,2.94319]
[1721378855635,2.94258,3398.4,3397.6,2.94319]
[1721378855862,3.531079,3398.4,3397.6,2.94319]
[1721378858369,2.94258,3398.4,3397.8,2.4941]
[1721378859671,2.94241,3398.6,3397.8,2.4941]
[1721378860296,2.94248,3398.5,3397.8,2.4941]
[1721378860466,2.94248,3398.5,3397.8,5.43717]
[1721378862052,2.94256,3398.4,3397.8,2.4941]
[1721378863484,2.94256,3398.4,3397.7,2.94315]
[1721378863762,2.94256,3398.4,3397.9,1.062]
[1721378864287,2.94256,3398.4,3397.5,5.32318]
[1721378864288,5.43156,3398.2,3397.5,1.062]
[1721378864475,0.70910557,3398.1,3397.4,3.0]
[1721378864801,2.94309,3397.8,3397.3,4.062]
[1721378865689,2.94309,3397.8,3397.3,3.0]
[1721378865900,2.94309,3397.8,3397.2,2.2674]
[1721378866079,5.88596,3398.0,3397.2,2.2674]
[1721378866281,2.94298,3398.0,3397.2,2.2674]
[1721378866807,2.94299,3397.9,3397.2,2.2674]
[1721378867107,2.943,3397.9,3397.2,5.21098]
[1721378867301,2.943,3397.9,3397.3,3.0]
[1721378867600,2.94257,3398.4,3397.4,2.94341]
[1721378867760,2.94281,3398.2,3397.4,2.94341]
[1721378869788,2.94281,3398.2,3397.5,2.94333]
[1721378872375,2.94281,3398.2,3397.3,5.94344]
[1721378872575,2.94287,3398.1,3397.3,5.94344]
[1721378872808,0.588568,3398.1,3397.3,3.0]
[1721378873015,3.47685,3398.6,3397.2,2.2674]
[1721378873016,2.4418,3398.5,3397.2,2.2674]
[1721378873215,2.4418,3398.5,3397.0,2.94373]
[1721378873421,2.4418,3398.5,3397.0,5.39473]
[1721378873574,2.94313,3397.8,3397.0,5.39473]
[1721378874300,2.94319,3397.7,3397.0,5.39473]
[1721378874626,2.4418,3398.5,3397.1,2.451]
[1721378874834,2.4418,3398.5,3397.1,5.39468]
[1721378874835,2.94313,3397.8,3397.1,5.39468]
[1721378875126,5.88629,3397.8,3397.1,5.39468]
[1721378875335,2.94317,3397.7,3397.1,2.451]
[1721378875626,2.9433,3397.6,3397.1,2.451]
[1721378876431,0.83281,3397.7,3397.1,2.451]
[1721378876646,2.94313,3397.8,3397.1,2.451]
[1721378877344,2.94299,3397.9,3397.1,7.94363]
[1721378877661,2.94287,3398.1,3397.4,2.94337]
[1721378879254,5.4418,3398.5,3397.1,7.94365]
[1721378879556,1.29742257,3398.4,3397.1,7.94365]
[1721378879844,4.29742257,3398.4,3397.1,7.94365]
[1721378880255,2.94291,3398.0,3397.1,5.0]
[1721378880569,2.94313,3397.8,3397.1,2.451]
[1721378880704,2.94313,3397.8,3397.1,5.39467]
[1721378881218,2.94291,3398.0,3397.2,2.94359]
[1721378881767,2.94276,3398.2,3397.2,2.94359]
[1721378881768,2.94276,3398.2,3397.4,2.94342]
[1721378881971,2.94276,3398.2,3397.5,5.37792]
[1721378885174,2.94282,3398.1,3397.5,2.4346]
[1721378886280,2.94282,3398.1,3397.2,5.40576]
[1721378886859,2.94304,3397.9,3397.2,5.40576]
[1721378887063,5.31114,3397.9,3397.2,2.4622]
[1721378887604,2.94285,3398.1,3397.2,2.4622]
[1721378887905,2.94285,3398.1,3397.3,2.94346]
[1721378889566,5.88536,3398.3,3397.5,2.3689]
[1721378889768,2.94265,3398.3,3397.5,5.31219]
[1721378889972,2.94275,3398.2,3397.5,5.31219]
[1721378890564,2.94259,3398.4,3397.7,2.94316]
[1721378890899,7.45,3398.6,3398.0,2.94285]
[1721378891075,2.94225,3398.8,3397.8,2.3636]
[1721378891697,2.94235,3398.7,3397.9,2.94293]
[1721378892911,2.94238,3398.6,3397.9,2.94293]
[1721378893114,2.94248,3398.5,3397.8,2.3636]
[1721378894116,2.94248,3398.5,3397.8,5.30666]
[1721378894831,2.94272,3398.3,3397.8,2.3636]
[1721378895010,2.94273,3398.2,3397.5,4.9919]
[1721378895339,2.94282,3398.1,3397.5,2.4429]
[1721378896633,2.94282,3398.1,3397.5,5.38624]
[1721378896794,2.94282,3398.1,3397.5,6.28039909]
[1721378897390,2.94272,3398.3,3397.5,6.28039909]
[1721378899035,2.94277,3398.2,3397.5,6.28039909]
[1721378899210,2.94284,3398.1,3397.5,2.4429]
[1721378900734,2.94284,3398.1,3397.5,2.4429]
[1721378901123,2.94284,3398.1,3397.6,1.02370733]
[1721378901329,2.94284,3398.1,3397.5,2.4429]
[1721378901528,2.94284,3398.1,3397.6,1.0236545]
[1721378901833,2.94284,3398.1,3397.5,2.4429]
[1721378902033,2.94271,3398.3,3397.6,1.02365125]
[1721378902204,2.94271,3398.3,3397.5,5.38623]
[1721378902399,3.236981,3398.3,3397.5,5.38623]
[1721378902933,2.94314,3397.8,3397.5,2.4429]
[1721378903140,2.94314,3397.8,3397.2,5.4523]
[1721378903436,2.94314,3397.8,3396.9,2.4523]
[1721378903437,2.94326,3397.6,3396.9,2.4523]
[1721378904914,2.94342,3397.4,3396.9,2.4523]
[1721378908411,2.94342,3397.4,3396.9,2.4523]
[1721378908615,2.94375,3397.1,3396.4,3.0]
[1721378909531,2.94375,3397.1,3396.3,2.94432]
[1721378909728,2.94375,3397.1,3396.4,2.94428]
[1721378909910,2.94354,3397.3,3396.4,2.94428]
[1721378909911,2.9436,3397.2,3396.5,2.4226]
[1721378910107,2.9436,3397.2,3396.6,2.549]
[1721378911619,2.94331,3397.6,3396.7,0.55923517]
[1721378911948,2.94331,3397.6,3396.8,2.2528]
[1721378912611,2.94331,3397.6,3396.8,5.19674]
[1721378913111,2.94334,3397.5,3396.8,2.2528]
[1721378913738,2.94348,3397.4,3396.8,2.2528]
[1721378914354,2.94352,3397.3,3396.8,2.2528]
[1721378915260,2.94342,3397.5,3396.8,2.2528]
[1721378915411,2.94344,3397.4,3396.8,2.2528]
[1721378917816,2.94318,3397.7,3397.0,2.549]
[1721378918019,2.94318,3397.7,3397.0,6.26734]
[1721378918217,2.94318,3397.7,3397.0,3.32358]
[1721378919646,2.3275,3398.4,3397.1,2.4991]
[1721378919861,2.94287,3398.1,3397.3,2.94351]
[1721378920026,2.94287,3398.1,3397.3,4.114503]
[1721378921051,2.94291,3398.0,3397.3,1.170993]
[1721378921247,2.94291,3398.0,3397.1,5.44272]
[1721378921621,2.94313,3397.8,3397.1,2.4991]
[1721378923984,2.943,3397.9,3397.1,2.4991]
[1721378924328,2.943,3397.9,3397.2,2.94359]
[1721378924870,2.94292,3398.0,3397.3,2.9435]
[1721378925157,2.94299,3397.9,3397.1,5.44272]
[1721378925359,2.94299,3397.9,3397.1,6.613724]
[1721378925542,2.94318,3397.7,3397.1,3.670104]
[1721378925740,2.94318,3397.7,3397.6,1.062]
[1721378926830,2.94318,3397.7,3397.1,2.4991]
[1721378926831,2.94325,3397.6,3397.4,1.062]
[1721378927049,3.50311457,3397.6,3397.4,1.062]
[1721378929231,2.94334,3397.5,3397.0,1.062]
[1721378929636,2.94351,3397.3,3397.0,1.062]
[1721378930432,2.94351,3397.3,3397.2,1.062]
[1721378931373,2.94363,3397.2,3396.8,2.4716]
[1721378931542,2.94363,3397.2,3397.1,1.062]
[1721378933790,2.94403,3396.7,3396.5,1.062]
[1721378934493,2.94387,3396.9,3396.5,1.062]
[1721378934670,2.94387,3396.9,3396.8,1.062]
[1721378935562,2.94404,3396.7,3396.1,2.4665]
[1721378935772,2.94404,3396.7,3396.6,1.062]
[1721378936917,2.94404,3396.7,3395.7,3.0]
[1721378936918,2.4123,3396.7,3395.7,2.2976]
[1721378937198,0.64467146,3397.3,3396.2,1.062]
[1721378937199,2.94428,3396.5,3396.2,1.062]
[1721378937871,2.94436,3396.4,3396.2,1.062]
[1721378938255,2.94448,3396.2,3395.7,2.2976]
[1721378938455,2.94448,3396.2,3396.1,1.062]
[1721378938907,2.94448,3396.2,3395.0,7.4]
[1721378938908,3.5512,3396.4,3394.6,0.91782134]
[1721378939101,2.94495,3395.7,3395.3,1.062]
[1721378939411,2.94509,3395.5,3395.3,1.062]
[1721378939712,3.29955,3396.3,3394.3,10.51098089]
[1721378939713,2.94516,3395.4,3394.3,9.8991]
[1721378939992,2.9454,3395.2,3394.4,2.552]
[1721378940234,2.478,3395.8,3394.5,3.745649]
[1721378940235,2.94526,3395.3,3394.5,3.745649]
[1721378940555,7.45,3396.3,3395.5,2.945]
[1721378940901,5.329,3396.7,3395.3,2.4032]
[1721378941105,2.94453,3396.2,3395.3,2.4032]
[1721378941271,2.94453,3396.2,3395.4,0.790051]
[1721378941869,2.94453,3396.2,3395.4,3.735191]
[1721378942279,2.94438,3396.3,3395.5,2.94506]
[1721378942491,2.94505,3395.6,3394.6,2.94579]
[1721378942695,2.94505,3395.6,3394.1,2.4291]
[1721378942696,2.94505,3395.6,3394.5,5.49786]
[1721378942915,2.94488,3395.8,3394.9,7.82016]
[1721378943128,2.94488,3395.8,3395.0,3.727496]
[1721378943721,2.9449,3395.7,3395.0,3.727496]
[1721378944103,2.94475,3395.9,3395.1,2.94541]
[1721378944306,2.94475,3395.9,3395.0,0.782016]
[1721378944307,2.9446,3396.1,3395.2,2.94531]
[1721378944534,2.94464,3396.0,3395.2,2.94531]
[1721378944830,2.94464,3396.0,3395.0,0.782016]
[1721378944831,2.94457,3396.1,3395.3,2.94524]
[1721378944991,2.94457,3396.1,3395.3,5.49724]
[1721378945694,2.94472,3395.9,3395.1,2.9454]
[1721378945904,2.94455,3396.1,3395.2,2.94533]
[1721378946108,2.94464,3396.0,3395.2,2.94533]
[1721378946435,2.94504,3395.6,3394.7,5.21636]
[1721378946732,2.94495,3395.7,3394.7,7.76836]
[1721378946891,2.94499,3395.6,3394.8,1.071429]
[1721378947431,2.94499,3395.6,3394.8,4.017099]
[1721378947642,2.94507,3395.5,3394.8,4.017099]
[1721378948007,2.94495,3395.7,3394.9,2.94559]
[1721378948519,2.94525,3395.3,3394.5,2.94587]
[1721378950344,2.94533,3395.2,3394.5,2.94587]
[1721378951594,5.28127,3395.9,3394.4,2.552]
[1721378951595,2.94492,3395.7,3394.4,2.552]
[1721378951719,2.94515,3395.5,3394.7,2.94576]
[1721378952308,2.94478,3395.9,3394.8,4.8931]
[1721378952537,1.039478,3395.8,3394.8,7.83872]
[1721378952944,2.94499,3395.6,3394.8,7.83872]
[1721378954261,2.94499,3395.6,3394.9,2.94559]
[1721378957249,3.984298,3395.8,3395.0,2.94548]
[1721378965175,2.9449,3395.7,3395.0,2.94548]
[1721378965411,2.94512,3395.5,3394.8,2.3411]
[1721378965591,2.94512,3395.5,3394.3,3.0]
[1721378965592,2.94532,3395.3,3394.4,5.35197]
[1721378965794,2.94532,3395.3,3394.5,2.94591]
[1721378966096,2.94532,3395.3,3394.6,2.94583]
[1721378967442,3.534365,3395.3,3394.6,2.94583]
[1721378968532,3.534365,3395.3,3394.7,2.94576]
[1721378968533,0.589045,3395.3,3394.7,2.94576]
[1721378968746,0.589045,3395.3,3394.6,2.94583]
[1721378968747,2.94513,3395.5,3394.8,2.94567]
[1721378975751,2.945,3395.6,3394.8,2.94567]
[1721378977213,2.945,3395.6,3394.9,2.94558]
[1721378979753,12.7712,3396.1,3395.5,1.063]
[1721378980057,4.22181,3396.0,3395.7,1.063]
[1721378984363,4.22181,3396.0,3395.2,2.94528]
[1721378984563,4.22181,3396.0,3395.7,1.063]
[1721378986223,2.9443,3396.4,3395.9,1.063]
[1721378986414,2.9443,3396.4,3396.1,1.063]
[1721378994780,2.94374,3397.1,3396.3,1.063]
[1721378994986,0.294374,3397.0,3396.5,2.9442]
[1721378995277,2.4739,3397.3,3397.0,1.063]
[1721378995278,2.9436,3397.2,3397.0,1.063]
[1721378996174,2.94368,3397.1,3396.8,1.063]
[1721378997523,2.94368,3397.1,3396.6,1.063]
[1721378997681,0.836109,3397.0,3396.6,1.063]
[1721378998017,3.779889,3397.0,3396.6,1.063]
[1721378999573,3.779889,3397.0,3396.2,2.94439]
[1721378999861,3.779889,3397.0,3396.6,1.063]
[1721379001856,0.836109,3397.0,3396.6,1.063]
[1721379002119,0.836109,3397.0,3396.4,2.94428]
[1721379002120,0.836109,3397.0,3396.8,1.063]
[1721379002320,2.9436,3397.2,3396.8,1.063]
[1721379003863,2.9436,3397.2,3396.5,2.9442]
[1721379007628,2.94313,3397.8,3395.5,3.0]
[1721379007629,2.408,3397.7,3397.0,2.94371]
[1721379007828,2.94293,3398.0,3396.9,2.3193]
[1721379008028,2.94293,3398.0,3397.0,2.55]
[1721379008029,0.323813,3397.9,3397.0,2.55]
[1721379008475,0.323813,3397.9,3397.3,2.94346]
[1721379009530,0.323813,3397.9,3397.4,2.94342]
[1721379009731,5.35082,3398.1,3397.4,2.94342]
[1721379010328,0.2952,3398.6,3397.6,2.94321]
[1721379010329,2.408,3398.4,3397.6,2.94321]
[1721379010532,5.35056,3398.4,3397.6,2.94321]
[1721379011273,2.94271,3398.3,3397.5,2.3193]
[1721379011581,2.408,3398.4,3397.5,5.26261]
[1721379011734,0.2408,3398.3,3397.5,5.26261]
[1721379012145,2.94273,3398.2,3397.5,5.26261]
[1721379014752,2.94254,3398.5,3397.6,2.94324]
[1721379015064,2.94232,3398.7,3397.8,2.55]
[1721379015470,2.3516,3398.8,3397.5,2.3193]
[1721379015471,2.94252,3398.5,3397.5,2.3193]
[1721379015679,2.94252,3398.5,3396.9,3.0]
[1721379015680,5.29417,3398.4,3397.4,2.94337]
[1721379015865,2.9428,3398.2,3397.4,2.94337]
[1721379016752,3.472057,3398.3,3397.3,2.4466]
[1721379016960,2.94291,3398.0,3397.3,5.39009]
[1721379017277,3.472057,3398.3,3397.3,5.39009]
[1721379017278,2.94279,3398.2,3397.3,5.39009]
[1721379017476,2.94282,3398.1,3397.3,5.39009]
[1721379017888,3.472057,3398.3,3397.5,2.94333]
[1721379018067,2.94264,3398.3,3397.5,2.94333]
[1721379019500,2.94273,3398.2,3397.5,2.94333]
[1721379019802,2.94258,3398.4,3397.6,2.94325]
[1721379020160,2.94274,3398.2,3397.4,5.49342]